bitfinex/quotes_BTCUSD_20260127
["timestamp","ask_amount","ask_price","bid_price","bid_amount"]
[1769546837384,0.04761572,89347.0,89320.0,0.33042657]
[1769546837640,0.17902098,89366.0,89323.0,0.02365457]
[1769546837898,0.11512,89353.0,89334.0,0.04731986]
[1769546838115,0.02692,89365.0,89341.0,0.02365457]
[1769546838116,0.14204,89365.0,89341.0,0.02365457]
[1769546838555,0.14204,89365.0,89312.0,0.11512]
[1769546838556,0.17902098,89364.0,89311.0,0.02365457]
[1769546838775,0.17902098,89350.0,89312.0,0.02365457]
[1769546839440,0.02413766,89351.0,89312.0,0.02365457]
[1769546839658,0.02413766,89351.0,89314.0,0.02365457]
[1769546839884,0.07175338,89363.0,89322.0,0.02365457]
[1769546840092,0.07175338,89363.0,89320.0,0.33042657]
[1769546840093,0.08954305,89360.0,89323.0,0.02365457]
[1769546840302,0.08954305,89360.0,89324.0,0.02365457]
[1769546840502,0.08954305,89360.0,89323.0,0.01546149]
[1769546840503,0.05595595,89356.0,89323.0,0.01546149]
[1769546840683,0.08954305,89360.0,89320.0,0.33042657]
[1769546840959,0.02413766,89345.0,89315.0,0.02365457]
[1769546841167,0.05639245,89344.0,89315.0,0.02365457]
[1769546841425,0.05595636,89356.0,89320.0,0.33042657]
[1769546841650,0.05639245,89354.0,89320.0,0.33042657]
[1769546841853,0.02413766,89351.0,89322.0,0.02365457]
[1769546842060,0.02413766,89360.0,89324.0,0.04731986]
[1769546842268,0.02413766,89358.0,89325.0,0.02365457]
[1769546842475,0.05639245,89357.0,89325.0,0.02365457]
[1769546842895,0.02413766,89354.0,89325.0,0.02365457]
[1769546843103,0.02413766,89353.0,89325.0,0.02365457]
[1769546843330,0.05639245,89352.0,89325.0,0.02365457]
[1769546843969,0.02390071,89352.0,89325.0,0.02365457]
[1769546844190,0.1173669,89352.0,89325.0,0.02365457]
[1769546844406,0.09910487,89351.0,89325.0,0.02365457]
[1769546845033,0.02390071,89352.0,89339.0,0.08762974]
[1769546845034,0.01086639,89352.0,89339.0,0.08762974]
[1769546845238,0.01086639,89352.0,89340.0,0.10841193]
[1769546845447,0.0900065,89364.0,89317.0,0.13127422]
[1769546845448,0.0229762,89347.0,89317.0,0.13127422]
[1769546845652,0.09910487,89344.0,89316.0,0.13127422]
[1769546845855,0.0229762,89342.0,89316.0,0.13127422]
[1769546846279,0.0229762,89342.0,89311.0,0.12198854]
[1769546846494,0.09910487,89341.0,89312.0,0.02272101]
[1769546846715,0.09910487,89337.0,89301.0,0.09926753]
[1769546846925,0.11504,89340.0,89289.0,0.08954305]
[1769546846926,0.0229762,89333.0,89293.0,0.13127422]
[1769546847144,0.0229762,89333.0,89285.0,0.08954305]
[1769546847145,0.0229762,89365.0,89311.0,0.09926753]
[1769546847355,0.02688,89332.0,89320.0,0.33042657]
[1769546847580,0.06484,89331.0,89320.0,0.33042657]
[1769546847793,0.06484,89331.0,89312.0,0.01838344]
[1769546848002,0.06530316,89331.0,89291.0,0.13127422]
[1769546848232,0.11504,89336.0,89321.0,0.09926753]
[1769546848451,0.09792,89340.0,89321.0,0.11811413]
[1769546848662,0.11504,89341.0,89322.0,0.01838344]
[1769546849146,0.11504,89341.0,89321.0,0.00046316]
[1769546849766,0.0229762,89340.0,89321.0,0.00046316]
[1769546849981,0.11504,89341.0,89321.0,0.00046316]
[1769546850196,0.11504,89341.0,89322.0,0.09926753]
[1769546850815,0.0229762,89349.0,89322.0,0.09926753]
[1769546851025,0.03361342,89421.0,89321.0,0.01434894]
[1769546851026,0.08954305,89385.0,89340.0,0.09926753]
[1769546851241,1.11839775,89414.0,89351.0,0.09926753]
[1769546851242,0.11504,89367.0,89351.0,0.09926753]
[1769546851666,0.11504,89367.0,89345.0,0.09926753]
[1769546852508,0.11504,89367.0,89351.0,0.09926753]
[1769546852729,0.02688,89373.0,89352.0,0.08179284]
[1769546852958,0.0229762,89381.0,89351.0,0.00535279]
[1769546852959,0.11504,89384.0,89360.0,0.33042657]
[1769546853170,0.11504,89384.0,89351.0,0.00046316]
[1769546853171,0.12905702,89421.0,89370.0,0.33042657]
[1769546853384,0.12905702,89421.0,89351.0,0.00046316]
[1769546853385,0.01,89370.0,89353.0,0.00488963]
[1769546854264,0.10324561,89386.0,89354.0,0.06505769]
[1769546854482,0.10324561,89386.0,89354.0,0.06994732]
[1769546854483,0.11251925,89385.0,89354.0,0.06994732]
[1769546854685,0.0229762,89385.0,89355.0,0.00488963]
[1769546854895,0.0229762,89385.0,89356.0,0.06086504]
[1769546855144,1.69193288,89400.0,89370.0,0.33042657]
[1769546855145,0.0229762,89393.0,89370.0,0.33042657]
[1769546855315,0.10524561,89388.0,89370.0,0.33042657]
[1769546855553,0.0229762,89391.0,89370.0,0.33042657]
[1769546856447,1.69193288,89400.0,89389.0,0.0002]
[1769546856647,1.69193288,89400.0,89390.0,0.33042657]
[1769546856977,1.69193288,89400.0,89370.0,0.33042657]
[1769546856978,0.10530259,89397.0,89370.0,0.33042657]
[1769546857185,0.12827879,89395.0,89370.0,0.33042657]
[1769546857619,0.00013942,89395.0,89373.0,0.07787194]
[1769546858579,0.00013942,89395.0,89380.0,0.33042657]
[1769546858728,0.00013942,89395.0,89381.0,0.08365847]
[1769546859135,0.00013942,89395.0,89370.0,0.38637341]
[1769546859359,0.10530259,89394.0,89370.0,0.38637329]
[1769546859561,0.10530259,89394.0,89370.0,0.33042657]
[1769546859760,0.00013942,89395.0,89374.0,0.05594421]
[1769546859960,0.00013942,89395.0,89373.0,0.08938146]
[1769546860166,0.00013942,89395.0,89380.0,0.33042657]
[1769546860634,0.00013942,89395.0,89381.0,0.09503112]
[1769546860836,0.00013942,89395.0,89380.0,0.33042657]
[1769546861062,0.00013942,89395.0,89376.0,0.00488963]
[1769546861467,0.00013942,89395.0,89376.0,0.00296667]
[1769546861622,1.69193288,89400.0,89381.0,0.09926753]
[1769546861823,0.0229762,89398.0,89381.0,0.00013942]
[1769546862222,1.80689288,89400.0,89369.0,0.05594737]
[1769546862223,0.0229762,89394.0,89369.0,0.05594737]
[1769546862417,0.10533048,89393.0,89367.0,0.09926753]
[1769546862548,0.00013929,89394.0,89360.0,0.43710622]
[1769546862549,0.0229762,89390.0,89361.0,0.10667965]
[1769546862752,0.0229762,89386.0,89360.0,0.33042657]
[1769546862957,0.0229762,89382.0,89351.0,0.09926753]
[1769546863161,0.0229762,89379.0,89353.0,0.09926753]
[1769546863387,0.0229762,89379.0,89354.0,0.05595681]
[1769546863548,0.0229762,89379.0,89354.0,0.05595679]
[1769546863750,0.0229762,89379.0,89353.0,0.09926753]
[1769546863966,0.11496,89381.0,89351.0,0.05680659]
[1769546863967,0.10533048,89376.0,89351.0,0.05680659]
[1769546864192,0.10533048,89372.0,89344.0,0.09926753]
[1769546864400,0.0229762,89369.0,89336.0,0.00746472]
[1769546864618,0.10533048,89367.0,89340.0,0.33042657]
[1769546864828,0.0229762,89364.0,89340.0,0.33042657]
[1769546865028,0.0229762,89364.0,89341.0,0.05596473]
[1769546865232,0.10533048,89363.0,89340.0,0.33042657]
[1769546865445,0.10533048,89361.0,89330.0,0.33042657]
[1769546865660,0.0229762,89357.0,89332.0,0.0559709]
[1769546865869,0.0229762,89357.0,89330.0,0.33042657]
[1769546865870,0.10432,89356.0,89330.0,0.42983316]
[1769546866071,0.10432,89356.0,89331.0,0.09926753]
[1769546866455,0.11352,89372.0,89356.0,0.10920695]
[1769546866638,0.11352,89372.0,89360.0,0.33042657]
[1769546866971,0.10533048,89371.0,89356.0,0.00993942]
[1769546867192,0.10533048,89371.0,89343.0,0.0164614]
[1769546867382,0.10533048,89371.0,89344.0,0.05596346]
[1769546867609,0.10533048,89371.0,89345.0,0.05596247]
[1769546867819,0.10533048,89371.0,89350.0,0.33042657]
[1769546868022,0.10533048,89371.0,89343.0,0.0164614]
[1769546868023,0.10533048,89369.0,89330.0,0.33042657]
[1769546868225,0.0229762,89366.0,89340.0,0.33042657]
[1769546868355,0.10533048,89363.0,89330.0,0.33042657]
[1769546868568,0.16946624,89372.0,89330.0,0.33042657]
[1769546868569,0.10533048,89359.0,89330.0,0.33042657]
[1769546868777,0.11352,89372.0,89330.0,0.33042657]
[1769546868778,0.10533048,89357.0,89330.0,0.33042657]
[1769546869097,0.12830668,89357.0,89330.0,0.33042657]
[1769546869280,0.10533048,89355.0,89330.0,0.38639837]
[1769546869409,0.10533048,89355.0,89330.0,0.38639846]
[1769546869627,0.10533048,89355.0,89330.0,0.33042657]
[1769546869834,0.12884,89356.0,89322.0,0.00046316]
[1769546869835,0.10533048,89351.0,89322.0,0.00046316]
[1769546870030,0.12884,89356.0,89322.0,0.00046316]
[1769546870031,0.0229762,89348.0,89322.0,0.00046316]
[1769546870265,0.0229762,89344.0,89310.0,0.33042657]
[1769546870465,0.0229762,89343.0,89302.0,0.13127422]
[1769546870673,0.10514435,89340.0,89301.0,0.22081727]
[1769546870817,0.10514435,89336.0,89302.0,0.05598925]
[1769546871035,0.0229762,89333.0,89302.0,0.05598925]
[1769546871240,0.10514435,89330.0,89304.0,0.13127422]
[1769546871451,0.22010435,89329.0,89304.0,0.13127422]
[1769546871698,0.11496,89329.0,89305.0,0.13127422]
[1769546871900,0.0229762,89327.0,89303.0,0.12983412]
[1769546872108,0.0229762,89327.0,89290.0,0.33042657]
[1769546872109,6.058e-05,89303.0,89291.0,0.01014347]
[1769546872328,6.058e-05,89303.0,89271.0,0.21907435]
[1769546872329,0.11496,89305.0,89285.0,0.16593903]
[1769546872529,0.11496,89305.0,89278.0,0.02272101]
[1769546872530,0.11496,89305.0,89281.0,0.16593903]
[1769546872746,0.10514435,89302.0,89280.0,0.16593903]
[1769546872972,0.10514435,89300.0,89280.0,0.33042657]
[1769546873365,0.11496,89305.0,89283.0,0.16593903]
[1769546873582,0.11496,89305.0,89280.0,0.33056563]
[1769546873753,0.09910487,89304.0,89280.0,0.33056563]
[1769546874527,0.09910487,89304.0,89280.0,0.00013906]
[1769546874728,0.02327417,89301.0,89280.0,0.00013906]
[1769546874937,0.13278842,89300.0,89280.0,0.00013906]
[1769546875138,0.11938842,89300.0,89280.0,0.00013906]
[1769546875977,0.11938842,89300.0,89281.0,0.10918657]
[1769546876156,0.11938842,89300.0,89282.0,0.10918657]
[1769546876353,0.11938842,89300.0,89283.0,0.10918657]
[1769546876584,0.05598381,89312.0,89280.0,0.00013906]
[1769546876585,0.13278842,89328.0,89290.0,0.33042657]
[1769546876934,0.13278842,89314.0,89291.0,0.10918657]
[1769546877143,0.13278842,89314.0,89292.0,0.10918657]
[1769546877355,0.13278842,89314.0,89288.0,0.02461384]
[1769546877356,0.13278842,89314.0,89293.0,0.10918657]
[1769546877559,0.13278842,89314.0,89294.0,0.10918657]
[1769546877763,0.13278842,89314.0,89295.0,0.10918657]
[1769546877963,0.13278842,89314.0,89296.0,0.10918657]
[1769546878166,0.13278842,89314.0,89297.0,0.10918657]
[1769546878367,0.13278842,89314.0,89298.0,0.10918657]
[1769546878571,0.13278842,89314.0,89299.0,0.10918657]
[1769546878996,0.13278842,89314.0,89300.0,0.10918657]
[1769546879199,0.13278842,89314.0,89289.0,0.10918657]
[1769546879489,0.02327417,89312.0,89265.0,0.02461384]
[1769546879698,0.13278842,89298.0,89265.0,0.02461384]
[1769546879900,0.13278842,89290.0,89265.0,0.02461384]
[1769546880104,0.13278842,89288.0,89264.0,0.0008443]
[1769546880314,0.02327417,89285.0,89264.0,0.0008443]
[1769546880530,0.13278842,89282.0,89260.0,0.33042657]
[1769546880749,0.13278842,89295.0,89282.0,0.01]
[1769546880943,0.02688,89288.0,89282.0,0.01]
[1769546881148,0.02688,89288.0,89270.0,0.33042657]
[1769546881363,0.02688,89288.0,89265.0,0.02461384]
[1769546881575,0.02688,89288.0,89229.0,0.44828279]
[1769546881576,0.13278842,89305.0,89279.0,0.02461384]
[1769546881783,0.115,89304.0,89279.0,0.02461384]
[1769546881990,0.115,89304.0,89278.0,0.33042657]
[1769546882201,0.115,89304.0,89280.0,0.02461384]
[1769546883500,0.02688,89307.0,89280.0,0.02461384]
[1769546883717,0.03362827,89444.0,89304.0,0.01]
[1769546883718,0.13278842,89331.0,89304.0,0.01]
[1769546883923,0.13278842,89331.0,89310.0,0.33042657]
[1769546884159,0.13278842,89328.0,89304.0,0.01]
[1769546884381,0.13278842,89328.0,89294.0,0.02461384]
[1769546884583,0.13278842,89326.0,89294.0,0.02461384]
[1769546885008,0.15652663,89326.0,89294.0,0.02461384]
[1769546886044,0.00046404,89326.0,89297.0,0.02461384]
[1769546886255,0.00046404,89326.0,89302.0,0.02461384]
[1769546886435,0.00046404,89326.0,89311.0,0.02461384]
[1769546889468,0.00046404,89326.0,89301.0,0.02461384]
[1769546889701,0.00046404,89326.0,89311.0,0.13716469]
[1769546889901,0.00046404,89326.0,89290.0,0.22398696]
[1769546889902,0.13278842,89340.0,89326.0,0.00046404]
[1769546890036,0.00013918,89340.0,89326.0,0.00046404]
[1769546890213,0.00013918,89340.0,89323.0,0.02461384]
[1769546890417,0.00013918,89340.0,89326.0,0.05597444]
[1769546890618,0.00013918,89340.0,89331.0,0.02461384]
[1769546891421,0.00013918,89340.0,89332.0,0.10893341]
[1769546891668,0.00013918,89340.0,89331.0,0.02461384]
[1769546891669,0.00013918,89340.0,89333.0,0.10893341]
[1769546891836,0.00013918,89340.0,89334.0,0.10893341]
[1769546892047,0.00013918,89340.0,89324.0,0.02461384]
[1769546892048,0.00013918,89340.0,89335.0,0.10893341]
[1769546892248,0.00013918,89340.0,89336.0,0.10893341]
[1769546892451,0.13278842,89354.0,89337.0,0.10893341]
[1769546892653,0.22378207,89373.0,89332.0,0.02461384]
[1769546892654,0.13278842,89363.0,89338.0,0.10893341]
[1769546892855,0.13278842,89363.0,89340.0,0.35420109]
[1769546893054,0.13278842,89363.0,89341.0,0.10893341]
[1769546893277,0.13278842,89363.0,89340.0,0.02475302]
[1769546893278,0.13278842,89363.0,89342.0,0.10893341]
[1769546893523,0.13278842,89363.0,89343.0,0.10893341]
[1769546893850,0.08282811,89369.0,89340.0,0.00013918]
[1769546893851,0.02327417,89359.0,89340.0,0.00013918]
[1769546894056,0.13278842,89356.0,89340.0,0.00013918]
[1769546894270,0.00093062,89355.0,89340.0,0.00013918]
[1769546894470,0.15606259,89354.0,89340.0,0.00013918]
[1769546894727,0.08954305,89362.0,89319.0,0.16593903]
[1769546894728,0.02327417,89352.0,89319.0,0.16593903]
[1769546894929,0.02327417,89352.0,89310.0,0.46675194]
[1769546894930,0.13278842,89349.0,89318.0,0.16593903]
[1769546895162,0.15606259,89347.0,89317.0,0.02461384]
[1769546895313,0.15606259,89347.0,89317.0,0.19055287]
[1769546895550,0.13278842,89347.0,89317.0,0.19055287]
[1769546895758,0.13278842,89344.0,89313.0,0.16593903]
[1769546895963,0.13278842,89339.0,89311.0,0.16593903]
[1769546896188,0.13278842,89339.0,89300.0,0.32958725]
[1769546896189,0.01754775,89385.0,89340.0,0.13716469]
[1769546896378,0.00013936,89385.0,89371.0,0.02461384]
[1769546897745,0.00013936,89385.0,89358.0,0.13716469]
[1769546897746,0.13278842,89384.0,89358.0,0.13716469]
[1769546897942,0.0102983,89383.0,89351.0,0.08954305]
[1769546898175,0.13278842,89382.0,89352.0,0.02461384]
[1769546898328,0.14308672,89382.0,89352.0,0.02461384]
[1769546898959,0.14308672,89382.0,89357.0,0.08056896]
[1769546899161,0.13278842,89382.0,89357.0,0.02461384]
[1769546899515,0.13278842,89382.0,89359.0,0.02461384]
[1769546899728,0.13278842,89382.0,89361.0,0.05595246]
[1769546899935,0.13278842,89382.0,89360.0,0.05595319]
[1769546899936,0.115,89381.0,89360.0,0.05595319]
[1769546900067,0.13278842,89380.0,89359.0,0.02461384]
[1769546900458,0.13278842,89380.0,89361.0,0.05595274]
[1769546900658,0.115,89379.0,89359.0,0.02461384]
[1769546900885,0.115,89379.0,89351.0,0.08954305]
[1769546900886,0.0006044,89383.0,89379.0,0.01]
[1769546901167,0.02688,89380.0,89379.0,0.01]
[1769546901430,0.13278842,89399.0,89379.0,0.01]
[1769546901431,0.01,89430.0,89382.0,0.08954305]
[1769546901621,0.01,89430.0,89404.0,0.08954305]
[1769546901622,0.0040121,89413.0,89404.0,0.08954305]
[1769546901790,9e-05,89439.0,89404.0,0.08954305]
[1769546901791,0.08688,89428.0,89404.0,0.08954305]
[1769546901990,0.08688,89428.0,89403.0,0.13716469]
[1769546901991,0.08734436,89428.0,89403.0,0.13716469]
[1769546902227,0.08734436,89428.0,89415.0,0.05591865]
[1769546902481,0.08734436,89428.0,89406.0,0.02499999]
[1769546902625,0.13278842,89427.0,89391.0,0.05593404]
[1769546902830,0.13278842,89427.0,89390.0,0.32958725]
[1769546902831,0.13278842,89427.0,89392.0,0.02499999]
[1769546903034,0.13278842,89427.0,89388.0,0.01677858]
[1769546903245,0.13278842,89427.0,89375.0,0.08954305]
[1769546903246,0.32958725,89420.0,89372.0,0.13064907]
[1769546903415,0.17257935,89419.0,89372.0,0.02499999]
[1769546903612,0.17257935,89417.0,89375.0,0.08954305]
[1769546903838,0.17257935,89417.0,89383.0,0.02499999]
[1769546904039,0.17257935,89417.0,89376.0,0.17378319]
[1769546904243,0.17257935,89417.0,89377.0,0.02499999]
[1769546904650,0.17257935,89417.0,89376.0,0.02499999]
[1769546904853,0.14184,89418.0,89376.0,0.02499999]
[1769546904854,0.17004176,89415.0,89376.0,0.02499999]
[1769546905059,0.08954305,89411.0,89376.0,0.02499999]
[1769546905257,0.17004176,89410.0,89376.0,0.02499999]
[1769546905459,0.32958725,89420.0,89360.0,0.41634431]
[1769546905460,0.14184,89409.0,89380.0,0.32958725]
[1769546905663,0.17004176,89417.0,89386.0,0.0559371]
[1769546905878,0.17004176,89415.0,89387.0,0.02499999]
[1769546906648,0.17004176,89415.0,89360.0,0.08675706]
[1769546906649,0.00046436,89428.0,89392.0,0.02499999]
[1769546906851,0.11496,89414.0,89397.0,0.02499999]
[1769546907061,0.11496,89414.0,89363.0,0.53436909]
[1769546907062,0.17004176,89413.0,89372.0,0.16373364]
[1769546907268,0.17004176,89413.0,89386.0,0.05593674]
[1769546907481,0.17004176,89413.0,89383.0,0.16373364]
[1769546907621,0.14184,89412.0,89386.0,0.02499999]
[1769546907820,0.14184,89412.0,89373.0,0.08954305]
[1769546907821,0.17004176,89411.0,89377.0,0.02499999]
[1769546908192,0.17004176,89411.0,89377.0,0.05594266]
[1769546908570,0.17004176,89411.0,89378.0,0.02499999]
[1769546908774,0.17004176,89411.0,89378.0,0.05594198]
[1769546908978,0.14184,89412.0,89379.0,0.0235418]
[1769546908979,0.1745405,89408.0,89379.0,0.0235418]
[1769546909217,0.00449874,89405.0,89374.0,0.05594429]
[1769546909440,0.17004176,89404.0,89373.0,0.05594528]
[1769546909692,0.17004176,89404.0,89374.0,0.0235418]
[1769546910103,0.17004176,89404.0,89375.0,0.00093311]
[1769546910311,0.1745405,89402.0,89375.0,0.00093311]
[1769546910794,0.17004176,89402.0,89375.0,0.02447491]
[1769546911016,0.14184,89401.0,89375.0,0.00093311]
[1769546911227,0.14184,89401.0,89371.0,0.16373364]
[1769546911228,0.14184,89401.0,89376.0,0.0235418]
[1769546911432,0.18422576,89400.0,89377.0,0.00093317]
[1769546911638,0.17004176,89396.0,89367.0,0.00093331]
[1769546912260,0.17004176,89396.0,89367.0,0.00107265]
[1769546912465,0.17004176,89396.0,89368.0,0.0235418]
[1769546912672,0.17004176,89396.0,89367.0,0.00107265]
[1769546912673,0.17004176,89396.0,89370.0,0.0235418]
[1769546912887,0.14184,89401.0,89367.0,0.00013934]
[1769546912888,0.00899684,89392.0,89367.0,0.00013934]
[1769546913091,0.1790386,89391.0,89367.0,0.00013934]
[1769546913298,0.00899684,89390.0,89367.0,0.00013934]
[1769546913517,0.00899684,89390.0,89353.0,0.08675706]
[1769546913518,0.00899684,89388.0,89353.0,0.08675706]
[1769546913732,0.32958725,89390.0,89353.0,0.00013936]
[1769546913733,0.17004176,89378.0,89353.0,0.00013936]
[1769546913948,0.00899684,89380.0,89344.0,0.08675706]
[1769546914156,0.00899684,89380.0,89338.0,0.0235418]
[1769546914157,0.1790386,89371.0,89338.0,0.0235418]
[1769546914369,0.08954305,89367.0,89338.0,0.0235418]
[1769546914588,0.17004176,89366.0,89338.0,0.0235418]
[1769546915021,0.14184,89365.0,89338.0,0.0235418]
[1769546915236,0.17004176,89362.0,89330.0,0.08675706]
[1769546915445,0.17004176,89363.0,89331.0,0.08675706]
[1769546915681,0.0134944,89362.0,89327.0,0.0235418]
[1769546915901,0.17004176,89358.0,89327.0,0.0235418]
[1769546916128,0.17004176,89347.0,89327.0,0.0235418]
[1769546916548,0.0134944,89357.0,89331.0,0.05597143]
[1769546916773,0.13184,89346.0,89330.0,0.32958725]
[1769546916985,0.11496,89345.0,89331.0,0.0235418]
[1769546917475,0.11496,89345.0,89331.0,0.02368114]
[1769546917734,0.17004176,89363.0,89331.0,0.02368114]
[1769546917964,0.44739257,89407.0,89340.0,0.38555311]
[1769546917965,0.17004176,89378.0,89340.0,0.38555311]
[1769546918179,0.17004176,89378.0,89341.0,0.0235418]
[1769546918180,0.14184,89362.0,89341.0,0.0235418]
[1769546918387,0.31188176,89362.0,89341.0,0.0235418]
[1769546918931,0.17004176,89362.0,89341.0,0.0235418]
[1769546919184,0.00097816,91449.0,89361.0,0.16373364]
[1769546919185,0.02688,89404.0,89361.0,0.16373364]
[1769546919384,0.17004176,89417.0,89390.0,0.32958725]
[1769546919594,0.02688,89403.0,89391.0,0.0235418]
[1769546920503,0.02701926,89403.0,89391.0,0.0235418]
[1769546921317,0.01,89391.0,89378.0,0.18727544]
[1769546921523,0.02701926,89403.0,89378.0,0.0235418]
[1769546921729,0.08954305,89399.0,89331.0,0.08954305]
[1769546921944,0.19455105,89397.0,89358.0,0.1308856]
[1769546922175,0.17004176,89381.0,89347.0,0.1308856]
[1769546922380,0.01,89358.0,89346.0,0.06095497]
[1769546922585,0.11496,89367.0,89350.0,0.32958725]
[1769546922798,0.02450929,89381.0,89352.0,0.05595804]
[1769546923007,0.17004176,89389.0,89350.0,0.32958725]
[1769546923385,0.13496,89388.0,89358.0,0.05595411]
[1769546923599,0.13496,89388.0,89353.0,0.05595723]
[1769546923600,0.13509923,89388.0,89353.0,0.05595723]
[1769546923800,0.02450929,89386.0,89350.0,0.32958725]
[1769546924003,0.13946929,89385.0,89350.0,0.32958725]
[1769546924221,0.14184,89384.0,89350.0,0.32958725]
[1769546924388,0.14184,89384.0,89356.0,0.05595553]
[1769546924821,0.14184,89384.0,89356.0,0.0559554]
[1769546925233,0.14184,89384.0,89357.0,0.05595488]
[1769546925446,0.14184,89384.0,89359.0,0.05595366]
[1769546925650,0.02688,89383.0,89368.0,0.05594791]
[1769546925851,0.02688,89383.0,89341.0,0.1308856]
[1769546925852,0.11496,89385.0,89363.0,0.0559512]
[1769546925970,0.11496,89385.0,89350.0,0.35312905]
[1769546926375,0.11496,89385.0,89362.0,0.05595166]
[1769546926587,0.00013923,89388.0,89360.0,0.32958725]
[1769546926792,0.00013923,89388.0,89347.0,0.1308856]
[1769546926793,0.00013923,89388.0,89370.0,0.32958725]
[1769546926997,0.00013923,89388.0,89366.0,0.16373364]
[1769546926998,0.02688,89396.0,89378.0,0.32958725]
[1769546927291,0.02688,89396.0,89378.0,0.00013923]
[1769546927465,0.11496,89398.0,89378.0,0.00013923]
[1769546928304,0.02450929,89408.0,89378.0,0.00013923]
[1769546928489,0.11496,89398.0,89378.0,0.00013923]
[1769546929544,0.02450929,89408.0,89378.0,0.00013923]
[1769546929753,0.17004176,89412.0,89378.0,0.00013923]
[1769546929754,0.02688,89416.0,89390.0,0.32958725]
[1769546929970,0.11496,89415.0,89390.0,0.32958725]
[1769546930777,0.17004176,89419.0,89390.0,0.32958725]
[1769546931001,0.14184,89418.0,89390.0,0.32958725]
[1769546931204,0.14184,89418.0,89386.0,0.0235418]
[1769546931966,0.02450929,89416.0,89381.0,0.05593991]
[1769546932171,0.17241178,89418.0,89381.0,0.05593991]
[1769546932172,0.19455105,89415.0,89381.0,0.05593991]
[1769546932438,0.19455105,89415.0,89380.0,0.38552791]
[1769546932640,0.17004176,89414.0,89380.0,0.32958725]
[1769546932854,0.17004176,89409.0,89378.0,0.00013923]
[1769546933062,0.02450929,89406.0,89378.0,0.00013923]
[1769546933269,0.30243366,89429.0,89380.0,0.32958725]
[1769546933486,0.02450929,89419.0,89390.0,0.32958725]
[1769546933706,0.0896,89470.0,89378.0,0.00013923]
[1769546933707,0.02450929,89429.0,89400.0,0.32958725]
[1769546933916,0.17004176,89458.0,89411.0,0.16373364]
[1769546934147,0.17004176,89458.0,89419.0,0.32958725]
[1769546934148,0.02450929,89449.0,89419.0,0.32958725]
[1769546934346,0.08974305,89474.0,89430.0,0.32958725]
[1769546934347,0.11492,89472.0,89430.0,0.32958725]
[1769546934556,0.18966982,89457.0,89411.0,0.24651364]
[1769546934774,0.11492,89472.0,89404.0,0.11492]
[1769546934775,0.02358991,89458.0,89420.0,0.32958725]
[1769546934996,0.11492,89466.0,89430.0,0.32958725]
[1769546935192,0.18966982,89455.0,89414.0,0.02282859]
[1769546935418,0.02358991,89456.0,89421.0,0.05591527]
[1769546935637,0.00046502,89458.0,89423.0,0.02282859]
[1769546935842,0.00046502,89458.0,89423.0,0.22450612]
[1769546936061,0.02358991,89455.0,89411.0,0.02282859]
[1769546936308,0.02358991,89455.0,89405.0,0.1308856]
[1769546936309,0.02358991,89445.0,89405.0,0.1308856]
[1769546936523,0.02358991,89445.0,89414.0,0.05591955]
[1769546936753,0.05635734,89458.0,89405.0,0.22450612]
[1769546936754,0.08954305,89499.0,89446.0,0.02282859]
[1769546936969,0.00257242,89487.0,89460.0,0.32958725]
[1769546937196,0.08954305,89483.0,89446.0,0.02282859]
[1769546937408,0.00257242,89487.0,89446.0,0.02282859]
[1769546937409,0.18966982,89482.0,89446.0,0.02282859]
[1769546937624,0.18966982,89482.0,89441.0,0.20167753]
[1769546937625,0.18966982,89482.0,89447.0,0.22359597]
[1769546937834,0.00257242,89487.0,89448.0,0.02282859]
[1769546938038,0.00257242,89487.0,89452.0,0.02282859]
[1769546938258,0.11492,89486.0,89460.0,0.32958725]
[1769546938471,0.11492,89486.0,89454.0,0.20167753]
[1769546938472,0.00257242,89487.0,89470.0,0.32958725]
[1769546938683,0.00257242,89487.0,89463.0,0.02282859]
[1769546939112,0.00257242,89487.0,89450.0,0.32958725]
[1769546939113,0.00257242,89487.0,89459.0,0.05589147]
[1769546939353,0.00257242,89487.0,89440.0,0.33256313]
[1769546939354,0.11749242,89487.0,89453.0,0.02282859]
[1769546939557,0.18966982,89486.0,89453.0,0.02282859]
[1769546940210,0.08954305,89479.0,89438.0,0.20167753]
[1769546940411,0.18966982,89478.0,89433.0,0.02282859]
[1769546940619,0.11488,89477.0,89440.0,0.38549056]
[1769546940827,0.23126305,89476.0,89440.0,0.32958725]
[1769546941039,0.14172,89476.0,89441.0,0.02282859]
[1769546941254,0.08954305,89475.0,89440.0,0.32958725]
[1769546941462,0.11488,89475.0,89440.0,0.32958725]
[1769546941667,0.11488,89475.0,89441.0,0.02282859]
[1769546941668,0.08954305,89470.0,89441.0,0.02282859]
[1769546942111,0.08954305,89470.0,89401.0,0.08954305]
[1769546942112,0.18966982,89469.0,89421.0,0.1308856]
[1769546942322,0.18966982,89469.0,89420.0,0.35646725]
[1769546942323,0.18966982,89469.0,89430.0,0.32958725]
[1769546942549,0.18966982,89469.0,89431.0,0.00094479]
[1769546942760,0.08954305,89470.0,89432.0,0.20167753]
[1769546942967,0.14172,89468.0,89441.0,0.02282859]
[1769546943380,0.18966982,89479.0,89440.0,0.32958725]
[1769546943381,0.18966982,89479.0,89451.0,0.05589594]
[1769546943596,0.14172,89478.0,89445.0,0.07872856]
[1769546943810,0.11488,89477.0,89445.0,0.02282859]
[1769546944020,0.02358991,89484.0,89445.0,0.02282859]
[1769546944227,0.20442305,89483.0,89445.0,0.02282859]
[1769546944652,0.20442305,89483.0,89418.0,0.1308856]
[1769546944653,0.18966982,89468.0,89426.0,0.02282859]
[1769546944866,0.02574254,89482.0,89440.0,0.32958725]
[1769546945096,0.18170305,89481.0,89451.0,0.02282859]
[1769546945313,0.18170305,89481.0,89412.0,0.44736479]
[1769546945314,0.00024054,89490.0,89481.0,0.01]
[1769546945518,0.00024054,89490.0,89481.0,0.00837029]
[1769546945722,0.00024054,89490.0,89459.0,0.02282859]
[1769546945927,0.11488,89488.0,89459.0,0.02282859]
[1769546946349,0.00024054,89490.0,89459.0,0.02282859]
[1769546946557,0.00024054,89490.0,89438.0,0.0602232]
[1769546946558,0.00024054,89490.0,89462.0,0.20167753]
[1769546946764,0.00024054,89490.0,89463.0,0.02282859]
[1769546947401,0.0561127,89490.0,89463.0,0.02282859]
[1769546947647,0.00024054,89490.0,89453.0,0.20167753]
[1769546947855,0.00024054,89490.0,89460.0,0.35241584]
[1769546948067,0.00024054,89490.0,89439.0,0.22361388]
[1769546948068,0.24554505,89486.0,89440.0,0.14544638]
[1769546948296,0.32982779,89490.0,89441.0,0.02282859]
[1769546948499,0.18966982,89465.0,89429.0,0.02282859]
[1769546948712,0.02358991,89472.0,89429.0,0.02282859]
[1769546948942,0.0558909,89460.0,89429.0,0.02282859]
[1769546949157,0.00243299,89487.0,89440.0,0.32958725]
[1769546949370,0.22352872,89474.0,89440.0,0.32958725]
[1769546949585,0.11484,89476.0,89438.0,0.02282859]
[1769546949795,0.11484,89476.0,89437.0,0.29122058]